fUSD/lending_fUSD_20251201
["ID","MTS","AMOUNT","RATE_DAILY","PERIOD"]
[395315481,1764613842966,-500.0,0.00017773,2]
[395315482,1764613842976,-501.4742826,0.00017773,2]
[395315483,1764613842986,-500.0,0.00017773,2]
[395315484,1764613842995,-500.0,0.00017773,2]
[395315485,1764613843005,-500.5084331,0.00017773,2]
[395315486,1764613843014,-500.0,0.00017773,2]
[395315487,1764613843024,-160.09669624,0.00017773,2]
[395315488,1764613843034,-500.0,0.00017773,2]
[395315489,1764613843045,-500.0,0.00017773,2]
[395315490,1764613843057,-500.0,0.00017773,2]
[395315491,1764613843067,-160.09684565,0.00017773,2]
[395315492,1764613843077,-219.62013657,0.00017773,2]
[395315493,1764613843087,-160.09796136,0.00017773,2]
[395315494,1764613843097,-500.0,0.00017773,2]
[395315495,1764613843106,-500.0,0.00017773,2]
[395315496,1764613843116,-557.4345573,0.00017773,2]
[395315497,1764613843125,-500.0,0.00017773,2]
[395315498,1764613843135,-160.09574989,0.00017773,2]
[395315499,1764613843146,-500.0,0.00017773,2]
[395315500,1764613843156,-281.76890158,0.00017773,2]
[395315501,1764613843166,-500.0,0.00017773,2]
[395315502,1764613843176,-500.0,0.00017773,2]
[395315503,1764613843185,-500.0,0.00017773,2]
[395315504,1764613843196,-500.0,0.00017773,2]
[395315505,1764613843206,-500.0,0.00017773,2]
[395315506,1764613843216,-500.0,0.00017773,2]
[395315507,1764613843226,-500.0,0.00017773,2]
[395315508,1764613843236,-500.0,0.00017773,2]
[395315509,1764613843246,-500.0,0.00017773,2]
[395315510,1764613843256,-500.0,0.00017773,2]
[395315511,1764613843266,-570.14905858,0.00017773,2]
[395315512,1764613843277,-500.0,0.00017773,2]
[395315513,1764613843288,-1067.14,0.00017795,2]
[395315514,1764613843603,-500.0,0.00017799,2]
[395315515,1764613843612,-500.0,0.00017799,2]
[395315516,1764613843622,-305.0,0.00017812,2]
[395315517,1764613843631,-1119.0,0.00017812,2]
[395315518,1764613843640,-440.0,0.00017812,2]
[395315519,1764613843649,-207.0,0.00017897,2]
[395315520,1764613843658,-427.65493559,0.00017938,2]
[395315521,1764613843667,-1119.0,0.00017949,2]
[395315522,1764613843677,-440.0,0.00017949,2]
[395315523,1764613843686,-600.0,0.00017958,2]
[395315524,1764613843695,-205.04,0.00017989,2]
[395315525,1764613843704,-166.66,0.00018041,2]
[395315526,1764613843713,-1067.14,0.00018068,2]
[395315527,1764613843722,-1500.0,0.00018068,2]
[395315528,1764613843731,-1500.0,0.00018068,2]
[395315529,1764613843741,-1500.0,0.00018068,2]
[395315530,1764613843750,-523.07376951,0.00018068,2]
[395315531,1764613843759,-1500.0,0.00018068,2]
[395315532,1764613843768,-1500.0,0.00018068,2]
[395315533,1764613843778,-1500.0,0.00018068,2]
[395315534,1764613843787,-1500.0,0.00018068,2]
[395315535,1764613843796,-696.9035739,0.00018068,2]
[395315536,1764613843805,-1500.0,0.00018068,2]
[395315537,1764613843814,-1497.87679415,0.00018068,2]
[395315538,1764613843824,-156.0,0.00018082,2]
[395315539,1764613843833,-1000.0,0.00018082,2]
[395315540,1764613843842,-1119.0,0.00018086,2]
[395315541,1764613843851,-440.0,0.00018086,2]
[395315542,1764613843862,-207.0,0.00018091,2]
[395315543,1764613843872,-2351.0,0.00018149,2]
[395315544,1764613843882,-1119.0,0.00018223,2]
[395315545,1764613843892,-440.0,0.00018223,2]
[395315546,1764613843902,-300.0,0.0001832,2]
[395315547,1764613843912,-300.0,0.0001832,2]
[395315548,1764613843922,-300.0,0.0001832,2]
[395315549,1764613843933,-300.0,0.0001832,2]
[395315550,1764613843944,-572.16,0.0001832,2]
[395315551,1764613843954,-1000.0,0.00018321,2]
[395315552,1764613843964,-1000.0,0.00018321,2]
[395315553,1764613843973,-207.34062351,0.00018321,2]
[395315554,1764613843983,-338.74802037,0.00018321,2]
[395315555,1764613843993,-1000.0,0.00018321,2]
[395315556,1764613844002,-1000.0,0.00018321,2]
[395315557,1764613844011,-957.63452341,0.00018321,2]
[395315558,1764613844021,-1000.0,0.00018321,2]
[395315559,1764613844033,-280.35705212,0.00018321,2]
[395315560,1764613844047,-1000.0,0.00018321,2]
[395315561,1764613844056,-1000.0,0.00018321,2]
[395315562,1764613844066,-500.0,0.00018321,2]
[395315563,1764613844075,-1000.0,0.00018321,2]
[395315564,1764613844085,-503.07122512,0.00018321,2]
[395315565,1764613844094,-1000.0,0.00018321,2]
[395315566,1764613844105,-516.50455865,0.00018321,2]
[395315567,1764613844115,-1000.0,0.00018321,2]
[395315568,1764613844125,-411.0756228,0.00018321,2]
[395315569,1764613844135,-1000.0,0.00018321,2]
[395315570,1764613844145,-1000.0,0.00018321,2]
[395315571,1764613844154,-1000.0,0.00018321,2]
[395315572,1764613844164,-1000.0,0.00018321,2]
[395315573,1764613844174,-1000.0,0.00018321,2]
[395315574,1764613844184,-1000.0,0.00018321,2]
[395315575,1764613844194,-1000.0,0.00018321,2]
[395315576,1764613844205,-485.38331852,0.00018321,2]
[395315577,1764613844215,-1000.0,0.00018321,2]
[395315578,1764613844225,-1000.0,0.00018321,2]
[395315579,1764613844237,-1000.0,0.00018321,2]
[395315580,1764613844247,-1000.0,0.00018321,2]
[395315581,1764613844258,-1000.0,0.00018321,2]
[395315582,1764613844268,-664.92632319,0.00018321,2]
[395315583,1764613844278,-530.66702702,0.00018321,2]
[395315584,1764613844291,-696.42213297,0.00018321,2]
[395315585,1764613844302,-1000.0,0.00018321,2]
[395315586,1764613844313,-1035.1038375,0.00018321,2]
[395315587,1764613844324,-506.68012113,0.00018321,2]
[395315588,1764613844334,-1000.0,0.00018321,2]
[395315589,1764613844345,-1067.14,0.00018342,2]
[395315590,1764613844354,-1000.0,0.00018359,2]
[395315591,1764613844364,-1119.0,0.0001836,2]
[395315592,1764613844373,-440.0,0.0001836,2]
[395315593,1764613844383,-207.4,0.00018496,2]
[395315594,1764613844392,-1119.0,0.00018497,2]
[395315595,1764613844402,-440.0,0.00018497,2]
[395315596,1764613844411,-600.0,0.00018506,2]
[395315597,1764613844421,-24669.09718781,0.00018579,2]
[395315598,1764613844430,-1000.6191,0.00018599,2]
[395315599,1764613844440,-1067.14,0.00018616,2]
[395315600,1764613844449,-2000.0,0.00018616,2]
[395315601,1764613844458,-2000.0,0.00018616,2]
[395315602,1764613844468,-1001.51277925,0.00018616,2]
[395315603,1764613844478,-419.63831049,0.00018616,2]
[395315604,1764613844488,-2000.0,0.00018616,2]
[395315605,1764613844499,-717.68125906,0.00018616,2]
[395315606,1764613844517,-500.0,0.00018616,2]
[395315607,1764613844531,-2000.0,0.00018616,2]
[395315608,1764613844543,-1119.0,0.00018634,2]
[395315609,1764613844554,-440.0,0.00018634,2]
[395315610,1764613844565,-250.0,0.00018706,2]
[395315611,1764613844575,-1000.0,0.0001876,2]
[395315612,1764613844584,-1119.0,0.00018771,2]
[395315613,1764613844594,-440.0,0.00018771,2]
[395315614,1764613844604,-150.74,0.000188,2]
[395315615,1764613844614,-150.74,0.000188,2]
[395315616,1764613844624,-150.74,0.000188,2]
[395315617,1764613844634,-150.74,0.000188,2]
[395315618,1764613844644,-150.74,0.000188,2]
[395315619,1764613844654,-150.74,0.000188,2]
[395315620,1764613844664,-150.74,0.000188,2]
[395315621,1764613844674,-150.74,0.000188,2]
[395315622,1764613844684,-150.74,0.000188,2]
[395315623,1764613844693,-150.74,0.000188,2]
[395315624,1764613844703,-150.74,0.000188,2]
[395315625,1764613844712,-150.74,0.000188,2]
[395315626,1764613844722,-150.74,0.000188,2]
[395315627,1764613844731,-150.74,0.000188,2]
[395315628,1764613844741,-150.74,0.000188,2]
[395315629,1764613844751,-150.74,0.000188,2]
[395315630,1764613844760,-238.62,0.00018842,2]
[395315631,1764613844770,-205.04,0.00018846,2]
[395315632,1764613844779,-300.0,0.00018867,2]
[395315633,1764613844789,-300.0,0.00018867,2]
[395315634,1764613844799,-300.0,0.00018867,2]
[395315635,1764613844808,-1339.96710079,0.00018868,2]
[395315636,1764613844818,-737.63476882,0.00018868,2]
[395315637,1764613844827,-987.452036,0.00018868,2]
[395315638,1764613844837,-1500.0,0.00018868,2]
[395315639,1764613844846,-441.13189507,0.00018868,2]
[395315640,1764613844856,-1500.0,0.00018868,2]
[395315641,1764613844866,-1505.52147503,0.00018868,2]
[395315642,1764613844875,-771.24315862,0.00018868,2]
[395315643,1764613844885,-1500.0,0.00018868,2]
[395315644,1764613844894,-1500.0,0.00018868,2]
[395315645,1764613844904,-663.98817001,0.00018868,2]
[395315646,1764613844914,-1552.19905586,0.00018868,2]
[395315647,1764613844924,-1055.00053518,0.00018868,2]
[395315648,1764613844935,-1500.0,0.00018868,2]
[395315649,1764613844944,-1500.0,0.00018868,2]
[395315650,1764613844954,-1500.0,0.00018868,2]
[395315651,1764613844966,-1500.0,0.00018868,2]
[395315652,1764613844976,-1500.0,0.00018868,2]
[395315653,1764613844987,-1386.40188047,0.00018868,2]
[395315654,1764613844996,-1500.0,0.00018868,2]
[395315655,1764613845006,-1500.0,0.00018868,2]
[395315656,1764613845015,-1500.0,0.00018868,2]
[395315657,1764613845025,-1500.0,0.00018868,2]
[395315658,1764613845034,-1067.18706299,0.0001889,2]
[395315659,1764613845045,-1119.0,0.00018908,2]
[395315660,1764613845055,-440.0,0.00018908,2]
[395315661,1764613845065,-1426.22,0.00018963,2]
[395315662,1764613845075,-229.92338086,0.00018974,2]
[395315663,1764613845085,-5137.17392177,0.00019,2]
[395315664,1764613845096,-183.2567971,0.00019,2]
[395315665,1764613845106,-8803.97728749,0.00019,2]
[395315666,1764613845116,-205.33290894,0.00019,2]
[395315667,1764613845126,-300.0,0.00019,2]
[395315668,1764613845136,-1119.0,0.00019045,2]
[395315669,1764613845145,-440.0,0.00019045,2]
[395315670,1764613845155,-600.0,0.00019054,2]
[395315671,1764613845165,-202.04411004,0.00019082,2]
[395315672,1764613845175,-508.61900502,0.00019164,2]
[395315673,1764613845184,-2500.0,0.00019164,2]
[395315674,1764613845195,-2572.7764437,0.00019164,2]
[395315675,1764613845205,-2500.0,0.00019164,2]
[395315676,1764613845214,-151.0,0.00019178,2]
[395315677,1764613845225,-151.0,0.00019178,2]
[395315678,1764613845234,-1119.0,0.00019182,2]
[395315679,1764613845245,-440.0,0.00019182,2]
[395315680,1764613845254,-82041.3260284,0.0001929,2]
[395315681,1764613845263,-1119.0,0.00019319,2]
[395315682,1764613845273,-440.0,0.00019319,2]
[395315683,1764613845282,-19043.63530165,0.00019379,2]
[395315684,1764613845294,-384.9832306,0.00019416,2]
[395315685,1764613845304,-1188.17593625,0.00019416,2]
[395315686,1764613845313,-503.6615541,0.00019416,2]
[395315687,1764613845322,-500.0,0.00019416,2]
[395315688,1764613845333,-2000.0,0.00019416,2]
[395315689,1764613845342,-434.82176489,0.00019416,2]
[395315690,1764613845352,-945.30965623,0.00019416,2]
[395315691,1764613845362,-2000.0,0.00019416,2]
[395315692,1764613845371,-500.0,0.00019416,2]
[395315693,1764613845381,-500.0,0.00019416,2]
[395315694,1764613845391,-972.98196458,0.00019416,2]
[395315695,1764613845400,-500.0,0.00019416,2]
[395315696,1764613845410,-500.0,0.00019416,2]
[395315697,1764613845419,-1000.0,0.00019438,2]
[395315698,1764613845429,-1127.0,0.00019456,2]
[395315699,1764613845438,-448.0,0.00019456,2]
[395315700,1764613845447,-600.0,0.00019602,2]
[395315701,1764613845457,-161.38,0.00019676,2]
[395315702,1764613845466,-7000.0,0.00019679,2]
[395315703,1764613845476,-205.04,0.00019702,2]
[395315704,1764613845485,-2464.07027394,0.00019712,2]
[395315705,1764613845495,-3000.0,0.00019712,2]
[395315706,1764613845507,-156.587,0.00019726,2]
[395315707,1764613845517,-224.04576721,0.00019827,2]
[395315708,1764613845527,-604.07312412,0.00019858,2]
[395315709,1764613845537,-77359.1903581,0.00019889,2]
[395315710,1764613845547,-153.73,0.00019961,2]
[395315711,1764613845557,-461.0,0.00019964,2]
[395315712,1764613845567,-2500.0,0.00019964,2]
[395315713,1764613845576,-1030.94789734,0.00019964,2]
[395315714,1764613845586,-702.68,0.0002,2]
[395315715,1764613845595,-4010.45805325,0.0002,3]
[395315716,1764613845605,-1065.0281103,0.00020078,2]
[395315717,1764613845615,-1000.0,0.00020116,2]
[395315718,1764613845624,-600.0,0.0002015,2]
[395315719,1764613845634,-662.22,0.00020187,2]
[395315720,1764613845644,-2985.93,0.00020243,2]
[395315721,1764613845653,-1500.0,0.0002026,2]
[395315722,1764613845664,-1000.0,0.00020399,2]
[395315723,1764613845673,-17261.1685335,0.00020428,2]
[395315724,1764613845683,-300.0,0.00020469,2]
[395315725,1764613845694,-300.0,0.00020469,2]
[395315726,1764613845704,-300.0,0.00020469,2]
[395315727,1764613845714,-250.0,0.0002047,2]
[395315728,1764613845723,-152.0,0.0002047,2]
[395315729,1764613845733,-210.0,0.0002047,2]
[395315730,1764613845742,-210.165,0.0002047,2]
[395315731,1764613845752,-220.501,0.0002047,2]
[395315732,1764613845762,-214.613,0.0002047,2]
[395315733,1764613845771,-250.0,0.0002047,2]
[395315735,1764613845781,-154.681,0.0002047,2]
[395315736,1764613845791,-189.728,0.0002047,2]
[395315737,1764613845801,-162.821,0.0002047,2]
[395315738,1764613845811,-210.788,0.0002047,2]
[395315739,1764613845820,-250.0,0.0002047,2]
[395315740,1764613845829,-250.0,0.0002047,2]
[395315741,1764613845838,-163.0,0.0002047,2]
[395315742,1764613845848,-254.894,0.0002047,2]
[395315743,1764613845858,-2000.0,0.00020512,2]
[395315744,1764613845867,-1263.732,0.00020538,2]
[395315745,1764613845876,-740.057,0.00020538,2]
[395315746,1764613845885,-909.0,0.00020538,2]
[395315748,1764613845895,-1217.12,0.00020538,2]
[395315750,1764613845905,-4704.0,0.00020538,2]
[395315751,1764613845914,-160.578,0.00020538,2]
[395315752,1764613845924,-3442.0,0.00020538,2]
[395315753,1764613845933,-205.04,0.00020559,2]
[395315754,1764613845943,-2815.1138131,0.00020633,2]
[395315755,1764613845952,-10129.9787815,0.00020633,2]
[395315756,1764613845961,-600.0,0.00020698,2]
[395315757,1764613845971,-2000.0,0.000207,2]
[395315758,1764613845981,-1000.0,0.00020795,2]
[395315759,1764613845990,-313.03,0.00020813,14]
[395315760,1764613846000,-153.71,0.00020819,2]
[395315761,1764613846010,-1426.22,0.00020859,2]
[395315762,1764613846020,-82041.3260284,0.00021105,2]
[395315763,1764613846029,-215.0738,0.00021235,2]
[395315764,1764613846039,-600.0,0.00021246,2]
[395315765,1764613846048,-205.04,0.00021416,2]
[395315766,1764613846058,-628.1367959,0.00021445,2]
[395315767,1764613846067,-2260.3037878,0.00021445,2]
[395315768,1764613846077,-24669.09718781,0.00021492,2]
[395315769,1764613846086,-170.0,0.000215,10]
[395315770,1764613846096,-7000.0,0.00021679,2]
[395315771,1764613846106,-600.0,0.00021794,2]
[395315772,1764613846116,-5000.0,0.00021918,2]
[395315773,1764613846126,-500.0,0.00021918,2]
[395315774,1764613846135,-153.73,0.00021973,2]
[395315775,1764613846146,-291.0,0.00021984,2]
[395315776,1764613846164,-150.0,0.00022,14]
[395315777,1764613846173,-1719.75,0.00022,7]
[395315778,1764613846183,-500.0,0.00022055,2]
[395315779,1764613846192,-500.0,0.00022192,2]
[395315780,1764613846201,-205.04,0.00022272,2]
[395315781,1764613846211,-157.64132353,0.00022327,2]
[395315782,1764613846220,-500.0,0.00022329,2]
[395315783,1764613846230,-600.0,0.00022342,5]
[395315784,1764613846240,-291.0,0.00022395,2]
[395315785,1764613846249,-1000.0,0.00022439,2]
[395315786,1764613846259,-162.380719,0.00022444,2]
[395315787,1764613846269,-300.0,0.00022444,2]
[395315788,1764613846279,-514.84070869,0.00022444,2]
[395315789,1764613846289,-1000.0,0.00022444,2]
[395315790,1764613846299,-1500.0,0.00022444,2]
[395315791,1764613846309,-1000.0,0.00022444,2]
[395315792,1764613846318,-312.0,0.00022444,2]
[395315793,1764613846328,-530.83383746,0.00022444,2]
[395315794,1764613846337,-151.0,0.00022444,2]
[395315795,1764613846347,-1000.0,0.00022444,2]
[395315796,1764613846356,-1000.0,0.00022444,2]
[395315797,1764613846366,-151.0,0.00022444,2]
[395315798,1764613846375,-1000.0,0.00022444,2]
[395315799,1764613846384,-1000.0,0.00022444,2]
[395315800,1764613846394,-248.71531821,0.00022444,2]
[395315801,1764613846403,-1000.0,0.00022444,2]
[395315802,1764613846412,-1000.0,0.00022444,2]
[395315803,1764613846422,-1000.0,0.00022444,2]
[395315804,1764613846432,-1000.0,0.00022444,2]
[395315805,1764613846442,-1000.0,0.00022444,2]
[395315806,1764613846452,-1000.0,0.00022444,2]
[395315807,1764613846461,-1000.0,0.00022444,2]
[395315808,1764613846470,-1000.0,0.00022444,2]
[395315809,1764613846479,-1000.0,0.00022444,2]
[395315810,1764613846489,-560.21662389,0.00022444,2]
[395315811,1764613846499,-1000.0,0.00022444,2]
[395315812,1764613846512,-762.94247186,0.00022444,2]
[395315813,1764613846521,-1000.0,0.00022444,2]
[395315814,1764613846530,-234.67943684,0.00022444,2]
[395315815,1764613846540,-500.0,0.00022444,2]
[395315816,1764613846549,-2500.0,0.00022444,2]
[395315817,1764613846558,-620.0,0.00022444,2]
[395315818,1764613846568,-500.0,0.00022444,2]
[395315819,1764613846578,-2500.0,0.00022444,2]
[395315820,1764613846589,-500.0,0.00022444,2]
[395315821,1764613846598,-2500.0,0.00022444,2]
[395315822,1764613846608,-500.0,0.00022444,2]
[395315823,1764613846617,-2500.0,0.00022444,2]
[395315824,1764613846627,-500.0,0.00022444,2]
[395315825,1764613846636,-958.72839442,0.00022444,2]
[395315826,1764613846645,-500.0,0.00022444,2]
[395315827,1764613846656,-3000.0,0.00022444,2]
[395315828,1764613846666,-500.0,0.00022444,2]
[395315829,1764613846675,-10000.0,0.00022444,2]
[395315830,1764613846684,-3000.0,0.00022444,2]
[395315831,1764613846693,-500.0,0.00022444,2]
[395315832,1764613846703,-8000.0,0.00022444,2]
[395315833,1764613846713,-10000.0,0.00022444,2]
[395315834,1764613846723,-3000.0,0.00022444,2]
[395315835,1764613846733,-500.0,0.00022444,2]
[395315836,1764613846743,-10000.0,0.00022444,2]
[395315837,1764613846753,-4000.0,0.00022444,2]
[395315838,1764613846763,-3000.0,0.00022444,2]
[395315839,1764613846774,-425.21848428,0.00022444,2]
[395315840,1764613846784,-9476.15946739,0.00022444,2]
[395315841,1764613846795,-3000.0,0.00022444,2]
[395315842,1764613846806,-3000.0,0.00022444,2]
[395315843,1764613846817,-3000.0,0.00022444,2]
[395315844,1764613846827,-3000.0,0.00022444,2]
[395315845,1764613846837,-3000.0,0.00022444,2]
[395315846,1764613846847,-3000.0,0.00022444,2]
[395315847,1764613846856,-3000.0,0.00022444,2]
[395315848,1764613846866,-3000.0,0.00022444,2]
[395315849,1764613846875,-3000.0,0.00022444,2]
[395315850,1764613846885,-151.0,0.00022444,2]
[395315851,1764613846894,-578.20924308,0.00022444,2]
[395315852,1764613846904,-151.0,0.00022444,2]
[395315853,1764613846913,-2750.0,0.00022444,2]
[395315854,1764613846923,-151.0,0.00022444,2]
[395315855,1764613846933,-311.1,0.00022444,2]
[395315856,1764613846942,-500.0,0.00022466,2]
[395315857,1764613846952,-2750.0,0.00022499,2]
[395315858,1764613846962,-2750.0,0.00022554,2]
[395315859,1764613846971,-500.0,0.00022603,2]
[395315860,1764613846981,-2750.0,0.00022609,2]
[395315861,1764613846990,-2750.0,0.00022664,2]
[395315862,1764613847000,-151.0,0.00022681,2]
[395315863,1764613847010,-172.851004,0.00022681,2]
[395315864,1764613847020,-172.851004,0.00022681,2]
[395315865,1764613847030,-172.851004,0.00022681,2]
[395315866,1764613847039,-172.851004,0.00022681,2]
[395315867,1764613847049,-1065.0281103,0.00022681,2]
[395315868,1764613847059,-2750.0,0.00022719,2]
[395315869,1764613847069,-500.0,0.0002274,2]
[395315870,1764613847079,-1426.22,0.00022755,2]
[395315871,1764613847089,-2750.0,0.00022774,2]
[395315872,1764613847099,-291.0,0.00022806,2]
[395315873,1764613847109,-2750.0,0.00022829,2]
[395315874,1764613847119,-500.0,0.00022877,2]
[395315875,1764613847129,-2750.0,0.00022884,2]
[395315876,1764613847138,-600.0,0.0002289,5]
[395315877,1764613847148,-151.0,0.00022921,2]
[395315878,1764613847157,-151.0,0.00022921,2]
[395315879,1764613847167,-151.0,0.00022921,2]
[395315880,1764613847176,-151.0,0.00022921,2]
[395315881,1764613847186,-151.0,0.00022921,2]
[395315882,1764613847196,-151.0,0.00022921,2]
[395315883,1764613847206,-151.0,0.00022921,2]
[395315884,1764613847215,-292.747024,0.00022921,2]
[395315885,1764613847226,-11329.56538734,0.00022921,2]
[395315886,1764613849258,-70711.76064106,0.00022921,2]
[395315887,1764613849274,-2750.0,0.00022939,2]
[395315888,1764613849289,-533.88981491,0.00022992,2]
[395315889,1764613849305,-642.94,0.00022992,2]
[395315890,1764613849321,-151.0,0.00022992,2]
[395315891,1764613849337,-151.0,0.00022992,2]
[395315892,1764613849352,-2750.0,0.00022994,2]
[395315893,1764613849367,-500.0,0.00023014,2]
[395315894,1764613849383,-2750.0,0.00023049,2]
[395315895,1764613849398,-2750.0,0.00023104,2]
[395315896,1764613849412,-205.04,0.00023129,2]
[395315897,1764613849427,-500.0,0.00023151,2]
[395315898,1764613849443,-2750.0,0.00023159,2]
[395315899,1764613849459,-291.0,0.00023217,2]
[395315900,1764613849475,-500.0,0.00023288,2]
[395315901,1764613849491,-500.0,0.00023425,2]
[395315902,1764613849510,-600.0,0.00023438,5]
[395315903,1764613849525,-909.0,0.00023538,2]
[395315904,1764613849540,-1194.0,0.00023538,2]
[395315905,1764613849555,-553.64373807,0.0002354,2]
[395315906,1764613849571,-666.72878,0.0002354,2]
[395315907,1764613849585,-151.0,0.0002354,2]
[395315908,1764613849599,-200.8894483,0.0002354,2]
[395315909,1764613849614,-500.0,0.00023562,2]
[395315910,1764613849628,-1719.75,0.000236,7]
[395315911,1764613849643,-291.0,0.00023628,2]
[395315912,1764613849658,-7000.0,0.00023679,2]
[395315913,1764613849673,-500.0,0.00023699,2]
[395315914,1764613849686,-311.1,0.00023813,2]
[395315915,1764613849701,-151.0,0.00023813,2]
[395315916,1764613849715,-257.91778498,0.00023813,2]
[395315917,1764613849729,-151.0,0.00023813,2]
[395315918,1764613849743,-322.6107,0.00023813,2]
[395315919,1764613849758,-500.0,0.00023836,2]
[395315920,1764613849772,-564.76303988,0.00023973,2]
[395315921,1764613849786,-177.5262,0.00023974,2]
[395315922,1764613849801,-600.0,0.00023985,5]
[395315923,1764613849815,-291.0,0.00024039,2]
[395315924,1764613849829,-574.12855637,0.00024088,2]
[395315925,1764613849843,-691.39774486,0.00024088,2]
[395315926,1764613849858,-151.0,0.00024088,2]
[395315927,1764613849873,-2000.0,0.000244,2]
[395315928,1764613849887,-24669.09718781,0.00024405,2]
[395315929,1764613849902,-153.73,0.00024414,2]
[395315930,1764613849917,-291.0,0.0002445,2]
[395315931,1764613849932,-1000.0,0.00024479,2]
[395315932,1764613849947,-389.5,0.00024533,5]
[395315933,1764613849962,-548.10396591,0.00024636,2]
[395315934,1764613849977,-716.97946142,0.00024636,2]
[395315935,1764613849992,-177.12269218,0.00024636,2]
[395315936,1764613850007,-196.26,0.00024658,30]
[395315937,1764613850021,-1000.0,0.00024658,2]
[395315938,1764613850036,-294.41102976,0.00024722,2]
[395315939,1764613850052,-300.0,0.00024799,10]
[395315940,1764613850067,-300.0,0.00024799,10]
[395315941,1764613850082,-300.0,0.00024799,10]
[395315942,1764613850099,-500.0,0.00024799,2]
[395315943,1764613850115,-520.83324818,0.00024799,2]
[395315944,1764613850127,-500.0,0.00024799,2]
[395315945,1764613850138,-500.0,0.00024799,2]
[395315946,1764613850148,-68071.46173506,0.000248,3]
[395315947,1764613850161,-428.38019963,0.000248,3]
[395315948,1764613850172,-563.44000015,0.000248,3]
[395315949,1764613850183,-1645.69870097,0.000248,3]
[395315950,1764613850195,-865.13590181,0.000248,3]
[395315951,1764613851709,-298.97669681,0.00015665,2]
[395315952,1764613851719,-150.23021155,0.00015665,2]
[395315953,1764613851729,-476.71000144,0.00016438,2]
[395315954,1764613851741,-23.28999856,0.00016438,2]
[395315955,1764613851751,-500.0,0.00016438,2]
[395315956,1764613851760,-500.0,0.00016438,2]
[395315957,1764613851770,-500.0,0.00016438,2]
[395315958,1764613851780,-500.0,0.00016438,2]
[395315959,1764613851790,-500.0,0.00016438,2]
[395315960,1764613851800,-500.0,0.00016438,2]
[395315961,1764613851810,-500.0,0.00016438,2]
[395315962,1764613851820,-500.0,0.00016438,2]
[395315963,1764613851830,-500.0,0.00016438,2]
[395315964,1764613851840,-500.0,0.00016438,2]
[395315965,1764613851850,-500.0,0.00016438,2]
[395315966,1764613851859,-586.14411257,0.00016438,2]
[395315967,1764613851869,-500.0,0.00016438,2]
[395315968,1764613851880,-500.0,0.00016438,2]
[395315969,1764613851889,-500.0,0.00016438,2]
[395315970,1764613851904,-500.0,0.00016438,2]
[395315971,1764613851915,-500.0,0.00016438,2]
[395315972,1764613851924,-500.0,0.00016438,2]
[395315973,1764613851934,-500.0,0.00016438,2]
[395315974,1764613851944,-500.0,0.00016438,2]
[395315975,1764613851954,-500.0,0.00016438,2]
[395315976,1764613851964,-500.0,0.00016438,2]
[395315977,1764613851974,-500.0,0.00016438,2]
[395315978,1764613851983,-500.0,0.00016438,2]
[395315979,1764613851993,-500.0,0.00016438,2]
[395315980,1764613852004,-500.0,0.00016438,2]
[395315981,1764613852014,-500.0,0.00016438,2]
[395315982,1764613852024,-500.0,0.00016438,2]
[395315983,1764613852034,-292.747024,0.00017,2]